[Event "GER-ch Youth U14 2019"]
[Site "Willingen"]
[Date "2019.06.12"]
[Round "5.21"]
[White "Kolmykov, Egor"]
[Black "Wellssow, Keoki"]
[Result "1-0"]
[ECO "B06"]
[WhiteElo "1642"]
[BlackElo "1509"]
[Annotator "NA"]
[PlyCount "70"]
[EventDate "2019.06.07"]
[EventType "swiss"]
[EventRounds "9"]
[EventCountry "GER"]
[SourceTitle "playchess.com"]
[Source "ChessBase"]
[SourceQuality "1"]
[TimeControl "40/5400+30:1800+30"]

1. e4 {[%emt 0:00:00]} g6 {[%emt 0:00:00]} 2. d3 {[%emt 0:00:00]} Bg7 3. g3 d6 {[%emt 0:02:31]} 4. f4 {[%emt 0:00:23]} c5 {[%emt 0:02:08]} 5. Bg2 {[%emt 0:00:31]} Qb6 {[%emt 0:02:19]} 6. Nd2 {[%emt 0:01:33]} Nf6 {[%emt 0:01:54]} 7. Ngf3 {[%emt 0:00:21]} Nc6 {[%emt 0:02:44]} 8. c3 {[%emt 0:00:31]} Be6 {[%emt 0:01:47]} 9. O-O {[%emt 0:02:45]} Ng4 {[%emt 0:05:39]} 10. Qe2 {[%emt 0:12:20]} O-O-O {[%emt 0:11:24]} 11. Ng5 {[%emt 0:02:47]} Nh6 {[%emt 0:03:25]} 12. Nxe6 {[%emt 0:04:38]} fxe6 {[%emt 0:00:11]} 13. Nc4 {[%emt 0:06:07]} Qa6 {[%emt 0:01:14]} 14. Bh3 {[%emt 0:03:21]} b5 {[%emt 0:08:29]} 15. Bxe6+ {[%emt 0:01:53]} Kc7 {[%emt 0:00:42]} 16. Ne3 {[%emt 0:00:35]} b4 {[%emt 0:05:02]} 17. Bc4 {[%emt 0:01:13]} Qa5 {[%emt 0:00:40]} 18. Nd5+ {[%emt 0:01:17]} Kd7 {[%emt 0:00:36]} 19. cxb4 {[%emt 0:01:03]} cxb4 {[%emt 0:00:31]} 20. Qg2 {[%emt 0:07:42]} Ng4 {[%emt 0:02:22]} 21. Qh3 {[%emt 0:07:32]} Bd4+ {[%emt 0:02:15]} 22. Kg2 {[%emt 0:01:03]} h5 {[%emt 0:00:44]} 23. Ne3 {[%emt 0:04:14]} Bxe3 {[%emt 0:00:50]} 24. Bxe3 {[%emt 0:00:01]} Kc7 {[%emt 0:00:35]} 25. Bd2 {[%emt 0:01:41]} Nd4 {[%emt 0:00:58]} 26. Bb3 {[%emt 0:06:48]} Kb6 {[%emt 0:02:23]} 27. Bd1 {[%emt 0:01:11]} Qb5 {[%emt 0:03:06]} 28. Bxg4 {[%emt 0:05:29]} hxg4 {[%emt 0:00:43]} 29. Qxg4 {[%emt 0:00:52]} Qxd3 {[%emt 0:00:28]} 30. Rf2 {[%emt 0:02:16]} Qxe4+ {[%emt 0:00:57]} 31. Kg1 {[%emt 0:00:32]} Rxh2 {[%emt 0:04:40]} 32. Rxh2 {[%emt 0:04:11]} Nf3+ {[%emt 0:02:24]} 33. Kf2 {[%emt 0:01:28]} Nxh2 {[%emt 0:00:48]} 34. Qe2 {[%emt 0:01:31]} Ng4+ {[%emt 0:10:15]} 35. Qxg4 {[%emt 0:04:42]} Rh8 {[%emt 0:00:36] normal} 1-0

[Event "GER-ch Youth U14 2019"]
[Site "Willingen"]
[Date "2019.06.12"]
[Round "5.22"]
[White "Wildermuth, Nikolas Karl"]
[Black "Divry, Alexandre"]
[Result "1-0"]
[ECO "C63"]
[WhiteElo "1748"]
[BlackElo "1654"]
[Annotator "NA"]
[PlyCount "92"]
[EventDate "2019.06.07"]
[EventType "swiss"]
[EventRounds "9"]
[EventCountry "GER"]
[SourceTitle "playchess.com"]
[Source "ChessBase"]
[SourceQuality "1"]
[TimeControl "40/5400+30:1800+30"]

1. e4 {[%emt 0:00:00]} e5 {[%emt 0:00:00]} 2. Nf3 {[%emt 0:00:00]} Nc6 {[%emt 0:00:00]} 3. Bb5 {[%emt 0:00:00]} f5 {[%emt 0:00:00]} 4. d3 {[%emt 0:02:53]} Nf6 {[%emt 0:01:33]} 5. O-O {[%emt 0:02:22]} d6 {[%emt 0:05:52]} 6. Nc3 {[%emt 0:01:29]} Be7 {[%emt 0:05:26]} 7. exf5 {[%emt 0:03:46]} Bxf5 {[%emt 0:00:28]} 8. d4 {[%emt 0:02:38]} exd4 {[%emt 0:07:15]} 9. Nxd4 {[%emt 0:01:07]} Bd7 {[%emt 0:00:02]} 10. Nxc6 {[%emt 0:00:41]} bxc6 {[%emt 0:00:16]} 11. Be2 {[%emt 0:01:41]} O-O {[%emt 0:01:37]} 12. Bf3 {[%emt 0:02:22]} d5 {[%emt 0:02:38]} 13. Ne2 {[%emt 0:02:17]} Bd6 {[%emt 0:17:06]} 14. Ng3 {[%emt 0:01:37]} Be6 {[%emt 0:08:08]} 15. Bg5 {[%emt 0:02:32]} Rb8 {[%emt 0:06:24]} 16. Rb1 {[%emt 0:05:34]} Be5 {[%emt 0:04:04]} 17. Qe2 {[%emt 0:01:58]} Qd6 {[%emt 0:00:46]} 18. Rfe1 {[%emt 0:02:06]} Nd7 {[%emt 0:01:29]} 19. c3 {[%emt 0:06:24]} Bf7 {[%emt 0:03:58]} 20. Nf5 {[%emt 0:02:30]} Bxh2+ {[%emt 0:10:48]} 21. Kh1 {[%emt 0:00:52]} Qe5 {[%emt 0:00:37]} 22. Qxe5 {[%emt 0:01:50]} Bxe5 {[%emt 0:00:01]} 23. Ne7+ {[%emt 0:00:42]} Kh8 {[%emt 0:00:02]} 24. Nxc6 {[%emt 0:01:52]} Rbe8 {[%emt 0:04:08]} 25. Be7 {[%emt 0:00:42]} Rg8 {[%emt 0:00:58]} 26. Bg4 {[%emt 0:01:10]} Rxe7 {[%emt 0:11:45]} 27. Nxe7 {[%emt 0:00:18]} Re8 {[%emt 0:00:00]} 28. Nc6 {[%emt 0:01:03]} Nf6 {[%emt 0:02:12]} 29. Nxe5 {[%emt 0:01:07]} Rxe5 {[%emt 0:00:26]} 30. Rxe5 {[%emt 0:00:08]} Nxg4 {[%emt 0:00:05]} 31. Rf5 {[%emt 0:00:27]} Kg8 {[%emt 0:00:57]} 32. Re1 {[%emt 0:00:32]} Bg6 {[%emt 0:00:24]} 33. Rf4 {[%emt 0:00:16]} Nf6 {[%emt 0:00:15]} 34. Ra4 Ne4 {[%emt 0:00:41]} 35. Kg1 {[%emt 0:00:44]} Nd2 {[%emt 0:00:58]} 36. Re2 Nc4 {[%emt 0:01:57]} 37. Rxc4 {[%emt 0:00:50]} dxc4 {[%emt 0:00:17]} 38. Re7 {[%emt 0:00:07]} Bb1 {[%emt 0:01:11]} 39. a3 {[%emt 0:00:13]} a5 {[%emt 0:00:14]} 40. Rxc7 {[%emt 0:00:12]} Bd3 {[%emt 0:00:16]} 41. Ra7 {[%emt 0:30:09]} g5 {[%emt 0:30:11]} 42. Rxa5 {[%emt 0:00:06]} g4 {[%emt 0:00:13]} 43. Rg5+ {[%emt 0:00:08]} Kf7 {[%emt 0:00:07]} 44. Rxg4 {[%emt 0:00:05]} h5 {[%emt 0:00:13]} 45. Rd4 {[%emt 0:00:07]} Be2 {[%emt 0:00:19]} 46. a4 {[%emt 0:00:08]} Ke6 {[%emt 0:00:21] normal} 1-0

[Event "GER-ch Youth U14 2019"]
[Site "Willingen"]
[Date "2019.06.12"]
[Round "6.1"]
[White "Krastev, Alexander"]
[Black "Bethke, Richard"]
[Result "1/2-1/2"]
[ECO "B52"]
[WhiteElo "2344"]
[BlackElo "2246"]
[Annotator "NA"]
[PlyCount "54"]
[EventDate "2019.06.07"]
[EventType "swiss"]
[EventRounds "9"]
[EventCountry "GER"]
[SourceTitle "playchess.com"]
[Source "ChessBase"]
[SourceQuality "1"]
[TimeControl "40/5400+30:1800+30"]

1. e4 {[%emt 0:00:00]} c5 {[%emt 0:00:00]} 2. Nf3 {[%emt 0:00:02]} d6 {[%emt 0:00:00]} 3. Bb5+ {[%emt 0:00:07]} Bd7 {[%emt 0:00:53]} 4. c4 {[%emt 0:00:07]} Nf6 {[%emt 0:01:14]} 5. Nc3 {[%emt 0:00:06]} g6 {[%emt 0:00:34]} 6. O-O {[%emt 0:00:15]} Bg7 {[%emt 0:00:18]} 7. d4 {[%emt 0:00:33]} cxd4 {[%emt 0:00:12]} 8. Nxd4 {[%emt 0:00:07]} O-O {[%emt 0:02:16]} 9. Bxd7 {[%emt 0:01:04]} Qxd7 {[%emt 0:00:09]} 10. b3 {[%emt 0:01:45]} Nc6 {[%emt 0:00:45]} 11. Bb2 {[%emt 0:01:48]} Rfc8 {[%emt 0:01:15]} 12. Re1 {[%emt 0:01:37]} Qd8 {[%emt 0:04:31]} 13. Nd5 {[%emt 0:04:50]} Nd7 {[%emt 0:10:18]} 14. Qd2 {[%emt 0:08:27]} Nc5 {[%emt 0:02:13]} 15. Rab1 {[%emt 0:04:58]} Rab8 {[%emt 0:05:48]} 16. Ba1 {[%emt 0:04:19]} a6 {[%emt 0:02:31]} 17. b4 {[%emt 0:11:12]} Nxd4 {[%emt 0:01:12]} 18. Bxd4 {[%emt 0:00:14]} Bxd4 {[%emt 0:00:59]} 19. Qxd4 {[%emt 0:00:08]} Ne6 {[%emt 0:00:18]} 20. Qd3 {[%emt 0:00:26]} Rc6 {[%emt 0:14:06]} 21. Rec1 {[%emt 0:04:37]} Rbc8 {[%emt 0:01:37]} 22. Rc3 {[%emt 0:00:34]} Nc7 {[%emt 0:04:50]} 23. Rbc1 {[%emt 0:07:48]} e5 {[%emt 0:05:10]} 24. Qe3 {[%emt 0:10:42]} Ne6 {[%emt 0:02:56]} 25. Qh6 {[%emt 0:01:15]} Kh8 {[%emt 0:05:46]} 26. Rh3 {[%emt 0:06:36]} Ng5 {[%emt 0:01:43]} 27. Re3 {[%emt 0:07:02]} Ne6 {[%emt 0:10:27] normal} 1/2-1/2

[Event "GER-ch Youth U14 2019"]
[Site "Willingen"]
[Date "2019.06.12"]
[Round "6.2"]
[White "Pubantz, Jan"]
[Black "Lutz, Ruben"]
[Result "1-0"]
[ECO "D30"]
[WhiteElo "2192"]
[BlackElo "2055"]
[Annotator "ChessBase"]
[PlyCount "122"]
[EventDate "2019.06.07"]
[EventType "swiss"]
[EventRounds "9"]
[EventCountry "GER"]
[SourceTitle "playchess.com"]
[Source "ChessBase"]
[SourceQuality "1"]
[TimeControl "40/5400+30:1800+30"]

1. d4 {[%emt 0:00:00]} d5 {[%emt 0:00:00]} 2. c4 {[%emt 0:00:00]} e6 {[%emt 0:00:00]} 3. Nf3 {[%emt 0:00:00]} Nf6 {[%emt 0:00:00]} 4. g3 {[%emt 0:00:00]} Bb4+ {[%emt 0:00:08]} 5. Nbd2 {[%emt 0:00:27]} O-O {[%emt 0:00:10]} 6. Bg2 {[%emt 0:00:20]} b6 {[%emt 0:00:28]} 7. O-O {[%emt 0:01:37]} Bb7 {[%emt 0:00:15]} 8. Ne5 {[%emt 0:10:52]} Nbd7 {[%emt 0:01:24]} 9. Ndf3 {[%emt 0:05:30]} Be7 {[%emt 0:01:43]} 10. Qa4 {[%emt 0:09:04]} Nxe5 {[%emt 0:10:24]} 11. Nxe5 {[%emt 0:02:43]} Qe8 {[%emt 0:00:37]} 12. Qc2 {[%emt 0:00:40]} c5 {[%emt 0:01:13]} 13. Rd1 {[%emt 0:15:14]} Rc8 {[%emt 0:01:25]} 14. dxc5 {[%emt 0:06:43]} Bxc5 {[%emt 0:01:29]} 15. Bg5 {[%emt 0:04:31]} Nd7 {[%emt 0:06:57]} 16. Nxd7 {[%emt 0:10:36]} Qxd7 {[%emt 0:00:05]} 17. Qb3 {[%emt 0:02:49]} d4 {[%emt 0:06:06]} 18. Rac1 {[%emt 0:03:34]} Bxg2 {[%emt 0:00:32]} 19. Kxg2 {[%emt 0:00:07]} Qb7+ {[%emt 0:00:10]} 20. Qf3 {[%emt 0:00:39]} Qxf3+ {[%emt 0:01:19]} 21. Kxf3 e5 {[%emt 0:01:07]} 22. Bd2 {[%emt 0:03:22]} a5 {[%emt 0:00:25]} 23. e3 {[%emt 0:00:48]} Rc6 {[%emt 0:09:53]} 24. Ke4 {[%emt 0:07:25]} Re8 {[%emt 0:01:35]} 25. f3 {[%emt 0:01:35]} Rd6 {[%emt 0:12:30]} 26. Be1 {[%emt 0:12:41]} Rh6 {[%emt 0:02:02]} 27. h4 {[%emt 0:00:50]} dxe3 {[%emt 0:04:21]} 28. Bc3 {[%emt 0:00:57]} e2 {[%emt 0:03:05]} 29. Rd5 {[%emt 0:00:46]} Bf2 {[%emt 0:01:14]} 30. Be1 {[%emt 0:00:08]} Bd4 {[%emt 0:01:23]} 31. Rc2 {[%emt 0:00:33]} Rc6 {[%emt 0:21:54]} 32. b3 {[%emt 0:00:10]} Kf8 {[%emt 0:00:50]} 33. Rxe2 {[%emt 0:00:06]} f6 {[%emt 0:03:01]} 34. Bf2 {[%emt 0:00:05]} Bxf2 {[%emt 0:02:27]} 35. Rxf2 {[%emt 0:00:04]} Ke7 {[%emt 0:00:19]} 36. Rfd2 {[%emt 0:00:08]} Rc7 {[%emt 0:00:26]} 37. Rd6 {[%emt 0:00:46]} Rb8 {[%emt 0:00:19]} 38. R6d5 {[%emt 0:02:11]} a4 {[%emt 0:02:22]} 39. Rb5 {[%emt 0:00:48]} axb3 {[%emt 0:00:36]} 40. axb3 {[%emt 0:00:06]} Ke6 {[%emt 0:03:51]} 41. Ra2 {[%emt 0:06:15]} Kd6 {[%emt 0:09:43]} 42. Rd5+ {[%emt 0:02:32]} Kc6 {[%emt 0:05:03]} 43. Rad2 {[%emt 0:04:32]} Re7 {[%emt 0:05:14]} 44. Rd6+ {[%emt 0:01:23]} Kc7 {[%emt 0:03:14]} 45. b4 {[%emt 0:03:53]} Ra8 {[%emt 0:01:03]} 46. b5 {[%emt 0:01:20]} Ra4 {[%emt 0:04:28]} 47. Rc6+ {[%emt 0:01:10]} Kb7 {[%emt 0:00:04]} 48. Rd8 {[%emt 0:09:15]} Rc7 {[%emt 0:04:40]} 49. Kd5 {[%emt 0:00:59]} Ra3 {[%emt 0:00:34]} 50. Rxc7+ {[%emt 0:00:24]} Kxc7 {[%emt 0:00:04]} 51. Rg8 {[%emt 0:00:09]} Rd3+ {[%emt 0:01:11]} 52. Ke4 {[%emt 0:00:27]} Rd7 {[%emt 0:00:39]} 53. Kf5 {[%emt 0:00:16]} Kd6 {[%emt 0:01:23]} 54. Rc8 {[%emt 0:03:26]} Ke7 {[%emt 0:00:43]} 55. Rc6 {[%emt 0:00:33]} Rb7 {[%emt 0:00:08]} 56. Ke4 {[%emt 0:00:54]} Kd7 {[%emt 0:01:08]} 57. Kd5 {[%emt 0:01:20]} Rb8 {[%emt 0:00:05]} 58. h5 {[%emt 0:00:10]} h6 {[%emt 0:00:40]} 59. Ke4 {[%emt 0:00:21]} Ke7 {[%emt 0:00:48]} 60. Rc7+ {[%emt 0:00:18]} Kf8 {[%emt 0:00:25]} 61. Kf5 {[%emt 0:00:20]} Rd8 {[%emt 0:00:34] normal} 1-0

[Event "GER-ch Youth U14 2019"]
[Site "Willingen"]
[Date "2019.06.12"]
[Round "6.3"]
[White "von Krosigk, Florian"]
[Black "Weihrauch, Jakob"]
[Result "0-1"]
[ECO "C77"]
[WhiteElo "1926"]
[BlackElo "2158"]
[Annotator "NA"]
[PlyCount "53"]
[EventDate "2019.06.07"]
[EventType "swiss"]
[EventRounds "9"]
[EventCountry "GER"]
[SourceTitle "playchess.com"]
[Source "ChessBase"]
[SourceQuality "1"]
[TimeControl "40/5400+30:1800+30"]

1. e4 {[%emt 0:00:00]} e5 {[%emt 0:00:00]} 2. Nf3 {[%emt 0:00:00]} Nc6 {[%emt 0:00:00]} 3. Bb5 {[%emt 0:01:00]} a6 {[%emt 0:00:12]} 4. Ba4 {[%emt 0:00:07]} Nf6 {[%emt 0:00:52]} 5. d3 {[%emt 0:02:10]} b5 {[%emt 0:00:39]} 6. Bb3 {[%emt 0:00:02]} Bc5 {[%emt 0:01:21]} 7. O-O {[%emt 0:04:02]} O-O {[%emt 0:04:43]} 8. Nc3 {[%emt 0:05:29]} d6 {[%emt 0:01:38]} 9. Nd5 {[%emt 0:01:41]} h6 {[%emt 0:02:00]} 10. Nxf6+ {[%emt 0:01:35]} Qxf6 {[%emt 0:00:03]} 11. Bd5 {[%emt 0:00:08]} Bd7 {[%emt 0:02:23]} 12. c3 {[%emt 0:00:50]} Rab8 {[%emt 0:04:30]} 13. h3 {[%emt 0:04:04]} Ne7 {[%emt 0:01:57]} 14. Bb3 {[%emt 0:04:42]} Rfd8 {[%emt 0:06:34]} 15. d4 {[%emt 0:07:36]} Bb6 {[%emt 0:02:02]} 16. a4 {[%emt 0:05:26]} c5 {[%emt 0:11:06]} 17. dxe5 {[%emt 0:20:40]} dxe5 {[%emt 0:00:08]} 18. Qe2 {[%emt 0:00:24]} c4 {[%emt 0:04:34]} 19. Bc2 {[%emt 0:00:34]} Ng6 {[%emt 0:06:50]} 20. Kh1 {[%emt 0:04:28]} Bc5 {[%emt 0:08:12]} 21. axb5 {[%emt 0:03:32]} axb5 {[%emt 0:00:25]} 22. Ng1 {[%emt 0:10:12]} b4 {[%emt 0:06:43]} 23. cxb4 {[%emt 0:10:27]} Rxb4 {[%emt 0:06:14]} 24. Be3 {[%emt 0:06:21]} Bd4 {[%emt 0:05:05]} 25. f4 {[%emt 0:02:48]} Bxe3 {[%emt 0:04:18]} 26. Qxe3 {[%emt 0:00:03]} exf4 {[%emt 0:00:07]} 27. Qc3 {[%emt 0:00:55] normal} 0-1

[Event "GER-ch Youth U14 2019"]
[Site "Willingen"]
[Date "2019.06.12"]
[Round "6.4"]
[White "Eilenberg, Jonas"]
[Black "Colbow, Collin"]
[Result "0-1"]
[ECO "A46"]
[WhiteElo "1934"]
[BlackElo "2169"]
[Annotator "NA"]
[PlyCount "86"]
[EventDate "2019.06.07"]
[EventType "swiss"]
[EventRounds "9"]
[EventCountry "GER"]
[SourceTitle "playchess.com"]
[Source "ChessBase"]
[SourceQuality "1"]
[TimeControl "40/5400+30:1800+30"]

1. d4 {[%emt 0:00:00]} Nf6 {[%emt 0:00:00]} 2. Nf3 {[%emt 0:00:00]} e6 {[%emt 0:00:12]} 3. e3 {[%emt 0:00:00]} b6 {[%emt 0:00:23]} 4. Bd3 {[%emt 0:00:04]} Bb7 {[%emt 0:00:05]} 5. O-O {[%emt 0:00:07]} c5 {[%emt 0:00:06]} 6. c4 {[%emt 0:00:05]} Be7 {[%emt 0:01:17]} 7. Nc3 {[%emt 0:00:16]} cxd4 {[%emt 0:00:13]} 8. exd4 {[%emt 0:00:06]} d5 {[%emt 0:00:03]} 9. cxd5 {[%emt 0:00:05]} Nxd5 {[%emt 0:00:31]} 10. Ne5 {[%emt 0:00:05]} O-O {[%emt 0:00:59]} 11. Qh5 {[%emt 0:00:13]} g6 {[%emt 0:01:04]} 12. Qh3 {[%emt 0:01:43]} Nc6 {[%emt 0:01:17]} 13. Bh6 {[%emt 0:05:20]} Nxd4 {[%emt 0:02:14]} 14. Bxf8 {[%emt 0:01:22]} Bxf8 15. Nxd5 {[%emt 0:10:21]} Qxd5 {[%emt 0:03:13]} 16. Rfe1 {[%emt 0:01:40]} Bb4 {[%emt 0:00:58]} 17. Ng4 {[%emt 0:06:34]} Qg5 {[%emt 0:16:32]} 18. Rf1 {[%emt 0:13:34]} h5 {[%emt 0:14:13]} 19. Ne3 {[%emt 0:00:22]} e5 {[%emt 0:03:15]} 20. Qg3 {[%emt 0:07:14]} Qf6 {[%emt 0:06:57]} 21. h4 {[%emt 0:08:40]} e4 {[%emt 0:03:09]} 22. Bc4 {[%emt 0:00:21]} b5 {[%emt 0:01:05]} 23. Qc7 {[%emt 0:01:02]} bxc4 {[%emt 0:01:00]} 24. Rfd1 {[%emt 0:06:05]} Qc6 {[%emt 0:09:00]} 25. Qxc6 {[%emt 0:02:20]} Nxc6 {[%emt 0:00:22]} 26. Rd7 {[%emt 0:00:53]} Ba6 {[%emt 0:02:42]} 27. Nd5 {[%emt 0:02:18]} Ne5 {[%emt 0:25:25]} 28. Nxb4 {[%emt 0:00:14]} Nxd7 {[%emt 0:00:12]} 29. Nxa6 {[%emt 0:00:04]} Ne5 {[%emt 0:00:51]} 30. Rd1 {[%emt 0:03:45]} Nd3 {[%emt 0:00:29]} 31. Rd2 {[%emt 0:01:37]} Rc8 {[%emt 0:00:27]} 32. Kf1 {[%emt 0:01:06]} Kf8 {[%emt 0:02:30]} 33. a3 {[%emt 0:01:41]} f5 {[%emt 0:02:54]} 34. g3 {[%emt 0:02:50]} Ke7 {[%emt 0:00:45]} 35. Rc2 {[%emt 0:02:27]} Kd6 {[%emt 0:01:18]} 36. Ke2 {[%emt 0:01:05]} Kd5 {[%emt 0:01:05]} 37. Ke3 {[%emt 0:01:44]} Rc6 {[%emt 0:00:31]} 38. Nb4+ {[%emt 0:00:20]} Nxb4 {[%emt 0:00:05]} 39. axb4 {[%emt 0:00:03]} Rb6 {[%emt 0:00:14]} 40. Kf4 {[%emt 0:00:58]} Rxb4 {[%emt 0:01:10]} 41. Rd2+ {[%emt 0:30:08]} Kc5 {[%emt 0:31:04]} 42. Kg5 {[%emt 0:03:45]} Rb6 {[%emt 0:00:00]} 43. Rc2 {[%emt 0:00:00]} Kb4 {[%emt 0:00:00] normal} 0-1

[Event "GER-ch Youth U14 2019"]
[Site "Willingen"]
[Date "2019.06.12"]
[Round "6.5"]
[White "Hetzner, Hannes"]
[Black "Musiolik, David"]
[Result "1/2-1/2"]
[ECO "E06"]
[WhiteElo "1996"]
[BlackElo "2132"]
[Annotator "NA"]
[PlyCount "78"]
[EventDate "2019.06.07"]
[EventType "swiss"]
[EventRounds "9"]
[EventCountry "GER"]
[SourceTitle "playchess.com"]
[Source "ChessBase"]
[SourceQuality "1"]
[TimeControl "40/5400+30:1800+30"]

1. d4 {[%emt 0:00:00]} d5 {[%emt 0:00:00]} 2. c4 {[%emt 0:00:00]} e6 {[%emt 0:00:00]} 3. Nf3 {[%emt 0:00:00]} Nf6 {[%emt 0:00:00]} 4. g3 {[%emt 0:00:00]} Be7 {[%emt 0:00:00]} 5. Bg2 {[%emt 0:00:02]} O-O {[%emt 0:02:13]} 6. O-O {[%emt 0:00:05]} dxc4 {[%emt 0:00:53]} 7. Qc2 {[%emt 0:00:13]} a6 {[%emt 0:03:52]} 8. a4 {[%emt 0:00:08]} Nd5 {[%emt 0:03:51]} 9. Rd1 {[%emt 0:14:04]} Nd7 {[%emt 0:02:51]} 10. e4 {[%emt 0:03:46]} Nb4 {[%emt 0:00:28]} 11. Qxc4 {[%emt 0:00:51]} b5 {[%emt 0:00:21]} 12. Qe2 {[%emt 0:04:08]} bxa4 13. Nc3 {[%emt 0:04:12]} Nb6 {[%emt 0:05:52]} 14. Ne5 {[%emt 0:08:44]} Bd7 {[%emt 0:03:41]} 15. d5 {[%emt 0:02:34]} exd5 {[%emt 0:02:32]} 16. exd5 {[%emt 0:04:36]} Bd6 {[%emt 0:03:03]} 17. Nc6 {[%emt 0:03:49]} Qe8 {[%emt 0:03:46]} 18. Nxb4 {[%emt 0:14:19]} Bxb4 {[%emt 0:01:54]} 19. Be3 {[%emt 0:10:45]} Bd6 {[%emt 0:05:16]} 20. Ne4 {[%emt 0:04:49]} Bb5 {[%emt 0:03:13]} 21. Nxd6 {[%emt 0:07:25]} cxd6 {[%emt 0:00:43]} 22. Qh5 {[%emt 0:02:22]} Nc4 {[%emt 0:02:41]} 23. Bd4 {[%emt 0:02:29]} f5 {[%emt 0:11:07]} 24. Qg5 {[%emt 0:02:51]} Qf7 {[%emt 0:01:15]} 25. Bh3 {[%emt 0:01:34]} h6 {[%emt 0:00:59]} 26. Qf4 {[%emt 0:01:04]} Rae8 {[%emt 0:01:06]} 27. Bg2 {[%emt 0:01:39]} Re2 {[%emt 0:01:54]} 28. Bf3 {[%emt 0:01:35]} Re7 {[%emt 0:02:50]} 29. Bc3 {[%emt 0:00:53]} Qg6 {[%emt 0:03:30]} 30. h4 {[%emt 0:01:49]} Rfe8 {[%emt 0:01:02]} 31. Qd4 {[%emt 0:01:34]} Ne5 {[%emt 0:05:46]} 32. Bg2 {[%emt 0:00:22]} Qg4 {[%emt 0:02:05]} 33. Qxg4 {[%emt 0:01:40]} fxg4 {[%emt 0:00:57]} 34. Re1 {[%emt 0:00:51]} Nd3 {[%emt 0:02:04]} 35. Re6 {[%emt 0:01:29]} Rxe6 {[%emt 0:11:32]} 36. dxe6 {[%emt 0:00:03]} Nc5 {[%emt 0:00:12]} 37. Rd1 {[%emt 0:00:35]} Nxe6 {[%emt 0:03:36]} 38. Rxd6 {[%emt 0:00:10]} Nc5 {[%emt 0:01:09]} 39. Rg6 {[%emt 0:00:38]} Re7 {normal} 1/2-1/2

[Event "GER-ch Youth U14 2019"]
[Site "Willingen"]
[Date "2019.06.12"]
[Round "6.6"]
[White "Elsner, Robert"]
[Black "Gallasch, Jonas"]
[Result "0-1"]
[ECO "A05"]
[WhiteElo "1745"]
[BlackElo "2137"]
[Annotator "NA"]
[PlyCount "65"]
[EventDate "2019.06.07"]
[EventType "swiss"]
[EventRounds "9"]
[EventCountry "GER"]
[SourceTitle "playchess.com"]
[Source "ChessBase"]
[SourceQuality "1"]
[TimeControl "40/5400+30:1800+30"]

1. Nf3 {[%emt 0:00:00]} Nf6 {[%emt 0:00:00]} 2. c4 {[%emt 0:00:00]} c5 {[%emt 0:00:00]} 3. g3 {[%emt 0:00:28]} d5 {[%emt 0:00:08]} 4. Bg2 {[%emt 0:02:00]} Nc6 {[%emt 0:00:17]} 5. O-O {[%emt 0:00:43]} e5 {[%emt 0:01:18]} 6. cxd5 {[%emt 0:00:38]} Nxd5 {[%emt 0:00:11]} 7. d3 {[%emt 0:00:10]} Be7 {[%emt 0:00:15]} 8. Nbd2 {[%emt 0:01:19]} Be6 {[%emt 0:02:50]} 9. a3 {[%emt 0:01:31]} O-O {[%emt 0:01:25]} 10. Qc2 {[%emt 0:00:07]} f6 {[%emt 0:17:07]} 11. e3 {[%emt 0:08:37]} Rc8 {[%emt 0:02:36]} 12. b3 {[%emt 0:00:09]} Qd7 {[%emt 0:02:09]} 13. Bb2 {[%emt 0:00:18]} Rfd8 {[%emt 0:02:29]} 14. Rfd1 {[%emt 0:00:46]} b5 {[%emt 0:10:49]} 15. Rac1 {[%emt 0:06:16]} Na5 {[%emt 0:04:26]} 16. Qb1 {[%emt 0:16:53]} Nb6 {[%emt 0:06:59]} 17. d4 {[%emt 0:00:22]} exd4 {[%emt 0:04:46]} 18. exd4 {[%emt 0:00:36]} Nxb3 {[%emt 0:01:46]} 19. Rc3 {[%emt 0:04:49]} Nxd2 {[%emt 0:03:50]} 20. Rxd2 {[%emt 0:00:19]} c4 {[%emt 0:00:45]} 21. Nh4 {[%emt 0:14:00]} Na4 {[%emt 0:02:49]} 22. Be4 {[%emt 0:00:11]} Nxc3 {[%emt 0:13:46]} 23. Bxh7+ {[%emt 0:00:08]} Kf8 {[%emt 0:00:27]} 24. Bxc3 {[%emt 0:00:24]} Bxa3 {[%emt 0:11:32]} 25. d5 {[%emt 0:19:58]} Bh3 {[%emt 0:01:27]} 26. Ng6+ {[%emt 0:13:42]} Kf7 {[%emt 0:00:17]} 27. Nf4 {[%emt 0:00:17]} Re8 {[%emt 0:05:14]} 28. Bxf6 {[%emt 0:00:32]} gxf6 {[%emt 0:00:46]} 29. Qg6+ {[%emt 0:00:04]} Ke7 {[%emt 0:00:18]} 30. d6+ {[%emt 0:08:25]} Bxd6 {[%emt 0:00:07]} 31. Nd5+ {[%emt 0:00:03]} Kd8 {[%emt 0:00:09]} 32. Qxf6+ {[%emt 0:00:05]} Be7 {[%emt 0:00:19]} 33. Qa6 {[%emt 0:01:59] normal} 0-1